[Event "*** Titled Tuesday Blitz"]
[Site "Chess.com"]
[Date "2021.02.02"]
[Round "2"]
[White "Alex_Molchanov"]
[Black "Homino"]
[Result "0-1"]
[WhiteElo "2484"]
[BlackElo "2316"]
[TimeControl "180+1"]
[EndTime "10:19:41 PST"]
[Termination "Homino won by resignation"]

1. d4 {[%clk 0:03:00.9]} 1... Nf6 {[%clk 0:02:59.6]} 2. Nf3 {[%clk 0:03:00.5]}
2... c5 {[%clk 0:02:57.2]} 3. g3 {[%clk 0:02:56.8]} 3... g6 {[%clk 0:02:56.9]}
4. Bg2 {[%clk 0:02:56.6]} 4... Bg7 {[%clk 0:02:56.6]} 5. O-O {[%clk 0:02:56.9]}
5... O-O {[%clk 0:02:56.3]} 6. c3 {[%clk 0:02:56.7]} 6... cxd4 {[%clk
0:02:55.2]} 7. cxd4 {[%clk 0:02:56.4]} 7... d5 {[%clk 0:02:55.4]} 8. Nc3 {[%clk
0:02:56.6]} 8... Nc6 {[%clk 0:02:55.1]} 9. Bf4 {[%clk 0:02:55.3]} 9... h6 {[%clk
0:02:43.7]} 10. Rc1 {[%clk 0:02:27.9]} 10... Be6 {[%clk 0:02:32.9]} 11. Ne5
{[%clk 0:02:24]} 11... Rc8 {[%clk 0:02:27.5]} 12. Nxc6 {[%clk 0:02:21.6]} 12...
Rxc6 {[%clk 0:02:23.3]} 13. Be5 {[%clk 0:02:21.6]} 13... Qa5 {[%clk 0:02:13.2]}
14. Qb3 {[%clk 0:01:57.2]} 14... Rb6 {[%clk 0:02:04.9]} 15. Qc2 {[%clk
0:01:39.8]} 15... Rc8 {[%clk 0:02:00.7]} 16. Qb1 {[%clk 0:01:37.6]} 16... Rbc6
{[%clk 0:01:29.1]} 17. a3 {[%clk 0:00:52]} 17... Ng4 {[%clk 0:01:06.2]} 18. Bxg7
{[%clk 0:00:41.6]} 18... Kxg7 {[%clk 0:01:07.1]} 19. h3 {[%clk 0:00:38.7]} 19...
Nf6 {[%clk 0:01:06.2]} 20. Na2 {[%clk 0:00:35.7]} 20... Qd2 {[%clk 0:00:56]} 21.
Rxc6 {[%clk 0:00:34.5]} 21... Rxc6 {[%clk 0:00:55.6]} 22. Nc3 {[%clk 0:00:34.2]}
22... Qxd4 {[%clk 0:00:41.8]} 23. Rd1 {[%clk 0:00:31.3]} 23... Qc5 {[%clk
0:00:37.9]} 24. Qd3 {[%clk 0:00:20.3]} 24... Rd6 {[%clk 0:00:28.4]} 25. Qd4
{[%clk 0:00:19.6]} 25... b6 {[%clk 0:00:16.1]} 26. Qxc5 {[%clk 0:00:16.5]} 26...
bxc5 {[%clk 0:00:17]} 27. Nb5 {[%clk 0:00:16.7]} 27... Rd7 {[%clk 0:00:16.7]}
28. Nc3 {[%clk 0:00:16.3]} 28... d4 {[%clk 0:00:15.2]} 29. Ne4 {[%clk
0:00:16.4]} 29... Nxe4 {[%clk 0:00:15.2]} 30. Bxe4 {[%clk 0:00:17.3]} 30... f5
{[%clk 0:00:15]} 31. Bd3 {[%clk 0:00:13.1]} 31... Rc7 {[%clk 0:00:13.9]} 32. b3
{[%clk 0:00:12.7]} 32... Bxb3 {[%clk 0:00:13.2]} 33. Rb1 {[%clk 0:00:11.8]}
33... c4 {[%clk 0:00:12.2]} 0-1

[Event "*** Titled Tuesday Blitz"]
[Site "Chess.com"]
[Date "2021.02.02"]
[Round "2"]
[White "NovikovaGalina"]
[Black "djano"]
[Result "0-1"]
[WhiteElo "2269"]
[BlackElo "2472"]
[TimeControl "180+1"]
[EndTime "10:19:41 PST"]
[Termination "djano won by checkmate"]

1. e4 {[%clk 0:03:00.1]} 1... Nf6 {[%clk 0:02:59.3]} 2. e5 {[%clk 0:03:00.1]}
2... Nd5 {[%clk 0:02:59.4]} 3. d4 {[%clk 0:03:01]} 3... d6 {[%clk 0:02:59.5]} 4.
Bc4 {[%clk 0:02:55.1]} 4... Nb6 {[%clk 0:02:58.7]} 5. Bb3 {[%clk 0:02:55]} 5...
Nc6 {[%clk 0:02:54]} 6. e6 {[%clk 0:02:44.7]} 6... fxe6 {[%clk 0:02:47.8]} 7.
Nf3 {[%clk 0:02:34.9]} 7... Na5 {[%clk 0:02:42.4]} 8. O-O {[%clk 0:02:18.9]}
8... g6 {[%clk 0:02:39.8]} 9. Re1 {[%clk 0:02:14.4]} 9... Nxb3 {[%clk 0:02:39]}
10. axb3 {[%clk 0:02:15.3]} 10... Bg7 {[%clk 0:02:38.3]} 11. Bg5 {[%clk
0:02:07.9]} 11... O-O {[%clk 0:02:36.3]} 12. Qd2 {[%clk 0:02:04.4]} 12... Qe8
{[%clk 0:02:32.1]} 13. Bh6 {[%clk 0:02:01.5]} 13... Qf7 {[%clk 0:02:21.7]} 14.
Bxg7 {[%clk 0:01:53.1]} 14... Qxg7 {[%clk 0:02:22.6]} 15. Nc3 {[%clk 0:01:54]}
15... Bd7 {[%clk 0:02:13.9]} 16. d5 {[%clk 0:01:40]} 16... e5 {[%clk 0:02:10.3]}
17. Ne4 {[%clk 0:01:30.6]} 17... Rf4 {[%clk 0:01:52.2]} 18. c4 {[%clk
0:01:23.2]} 18... c5 {[%clk 0:01:48.7]} 19. Nfg5 {[%clk 0:00:56.9]} 19... a6
{[%clk 0:01:30]} 20. Qa5 {[%clk 0:00:36.9]} 20... h6 {[%clk 0:01:14.2]} 21. Qxb6
{[%clk 0:00:34.5]} 21... hxg5 {[%clk 0:01:14.1]} 22. Qc7 {[%clk 0:00:34.1]}
22... Bf5 {[%clk 0:01:10.3]} 23. Nxg5 {[%clk 0:00:33.3]} 23... Rf8 {[%clk
0:01:09.6]} 24. Qxb7 {[%clk 0:00:28.9]} 24... Qf6 {[%clk 0:01:07.2]} 25. Nf3
{[%clk 0:00:23.4]} 25... e4 {[%clk 0:01:03.7]} 26. Nd2 {[%clk 0:00:18.1]} 26...
Qd4 {[%clk 0:01:03.7]} 27. Nf1 {[%clk 0:00:09.2]} 27... Rxf2 {[%clk 0:00:59.9]}
28. Kh1 {[%clk 0:00:09.5]} 28... e3 {[%clk 0:00:57.7]} 29. Ng3 {[%clk
0:00:08.6]} 29... Qxb2 {[%clk 0:00:52.9]} 30. Qxe7 {[%clk 0:00:08.7]} 30... Rxg2
{[%clk 0:00:53]} 31. Qh4 {[%clk 0:00:06]} 31... Kg7 {[%clk 0:00:44.2]} 32. Rab1
{[%clk 0:00:05.1]} 32... Qf2 {[%clk 0:00:42.1]} 33. Nxf5+ {[%clk 0:00:05.3]}
33... Rxf5 {[%clk 0:00:40.8]} 34. Qxf2 {[%clk 0:00:06.2]} 34... Rfxf2 {[%clk
0:00:39.8]} 35. Rxe3 {[%clk 0:00:06.6]} 35... Rxh2+ {[%clk 0:00:40.2]} 36. Kg1
{[%clk 0:00:07.5]} 36... Rhg2+ {[%clk 0:00:40.4]} 37. Kh1 {[%clk 0:00:07.5]}
37... Rg5 {[%clk 0:00:39]} 38. Re7+ {[%clk 0:00:06.5]} 38... Kf8 {[%clk
0:00:37.3]} 39. Rbe1 {[%clk 0:00:07.4]} 39... Rf4 {[%clk 0:00:33.3]} 40. R7e6
{[%clk 0:00:06.8]} 40... Rh4# {[%clk 0:00:32.8]} 0-1

[Event "*** Titled Tuesday Blitz"]
[Site "Chess.com"]
[Date "2021.02.02"]
[Round "2"]
[White "barbara25"]
[Black "guillembaches"]
[Result "1/2-1/2"]
[WhiteElo "2256"]
[BlackElo "2453"]
[TimeControl "180+1"]
[EndTime "10:19:41 PST"]
[Termination "Game drawn - insufficient material"]

1. e4 {[%clk 0:03:00.9]} 1... c5 {[%clk 0:02:58.7]} 2. Nf3 {[%clk 0:03:00.3]}
2... d6 {[%clk 0:02:58.8]} 3. d4 {[%clk 0:03:00]} 3... cxd4 {[%clk 0:02:59.7]}
4. Nxd4 {[%clk 0:02:59]} 4... Nf6 {[%clk 0:03:00]} 5. Nc3 {[%clk 0:02:59.1]}
5... Nc6 {[%clk 0:03:00.5]} 6. Be3 {[%clk 0:02:57.9]} 6... Ng4 {[%clk 0:03:00]}
7. Bg5 {[%clk 0:02:52.8]} 7... Qb6 {[%clk 0:02:54.7]} 8. Bb5 {[%clk 0:02:42.8]}
8... e5 {[%clk 0:02:48.2]} 9. Nd5 {[%clk 0:02:30.2]} 9... Qxd4 {[%clk
0:02:34.7]} 10. Qxd4 {[%clk 0:02:28.7]} 10... exd4 {[%clk 0:02:33.2]} 11. Nc7+
{[%clk 0:02:28.9]} 11... Kd7 {[%clk 0:02:33.2]} 12. Nxa8 {[%clk 0:02:28.2]}
12... b6 {[%clk 0:02:25.7]} 13. h3 {[%clk 0:02:26.4]} 13... Nf6 {[%clk 0:02:14]}
14. f3 {[%clk 0:02:23.2]} 14... Bb7 {[%clk 0:02:08.3]} 15. Nxb6+ {[%clk
0:02:23.3]} 15... axb6 {[%clk 0:02:08.9]} 16. O-O-O {[%clk 0:02:23.5]} 16... Be7
{[%clk 0:02:01.6]} 17. Bxc6+ {[%clk 0:02:23]} 17... Kxc6 {[%clk 0:01:57.1]} 18.
Rxd4 {[%clk 0:02:22.8]} 18... h6 {[%clk 0:01:54.6]} 19. Bf4 {[%clk 0:02:21.3]}
19... g5 {[%clk 0:01:54.3]} 20. Be3 {[%clk 0:02:20.9]} 20... b5 {[%clk 0:01:31]}
21. Rhd1 {[%clk 0:02:20.5]} 21... Nd7 {[%clk 0:01:28.5]} 22. Bf2 {[%clk
0:02:17.5]} 22... Ne5 {[%clk 0:01:22.9]} 23. Bg3 {[%clk 0:02:15.9]} 23... f6
{[%clk 0:01:16.3]} 24. a3 {[%clk 0:02:13.3]} 24... h5 {[%clk 0:01:14.1]} 25. a4
{[%clk 0:02:07.2]} 25... Ra8 {[%clk 0:01:06.9]} 26. axb5+ {[%clk 0:02:05.9]}
26... Kxb5 {[%clk 0:01:07.2]} 27. b3 {[%clk 0:02:04.3]} 27... h4 {[%clk
0:01:01.7]} 28. Bf2 {[%clk 0:02:00.5]} 28... Kc6 {[%clk 0:00:59.5]} 29. Kd2
{[%clk 0:01:58.5]} 29... Bc8 {[%clk 0:00:56.2]} 30. f4 {[%clk 0:01:52.2]} 30...
gxf4 {[%clk 0:00:52.1]} 31. Bxh4 {[%clk 0:01:51.4]} 31... Be6 {[%clk 0:00:51.2]}
32. Rf1 {[%clk 0:01:47.6]} 32... Rg8 {[%clk 0:00:42.6]} 33. Rf2 {[%clk
0:01:45.6]} 33... f3 {[%clk 0:00:39.7]} 34. gxf3 {[%clk 0:01:42.6]} 34... Bxh3
{[%clk 0:00:39.8]} 35. f4 {[%clk 0:01:31.3]} 35... Nd7 {[%clk 0:00:31.6]} 36.
Rf3 {[%clk 0:01:26.6]} 36... Bg2 {[%clk 0:00:28.3]} 37. Rg3 {[%clk 0:01:26.4]}
37... Rxg3 {[%clk 0:00:28.4]} 38. Bxg3 {[%clk 0:01:26.4]} 38... Nc5 {[%clk
0:00:26.4]} 39. Ke3 {[%clk 0:01:25.7]} 39... Bd8 {[%clk 0:00:26.4]} 40. Bh4
{[%clk 0:01:24.2]} 40... Bb6 {[%clk 0:00:26]} 41. Bxf6 {[%clk 0:01:16.3]} 41...
Nxe4 {[%clk 0:00:23.6]} 42. Bh8 {[%clk 0:01:09.1]} 42... Bxd4+ {[%clk
0:00:20.3]} 43. Bxd4 {[%clk 0:01:08.5]} 43... d5 {[%clk 0:00:19.5]} 44. c4
{[%clk 0:01:08]} 44... Bh3 {[%clk 0:00:19.6]} 45. cxd5+ {[%clk 0:01:07.5]} 45...
Kxd5 {[%clk 0:00:20.5]} 46. Be5 {[%clk 0:01:06.7]} 46... Bf5 {[%clk 0:00:20.5]}
47. b4 {[%clk 0:01:06.3]} 47... Kc4 {[%clk 0:00:20.7]} 48. Kf3 {[%clk
0:01:03.7]} 48... Kxb4 {[%clk 0:00:20.2]} 49. Ke3 {[%clk 0:01:04.2]} 49... Kc4
{[%clk 0:00:20.4]} 50. Kf3 {[%clk 0:01:04.3]} 50... Kd5 {[%clk 0:00:20.7]} 51.
Ke3 {[%clk 0:01:04.7]} 51... Ke6 {[%clk 0:00:21]} 52. Kd4 {[%clk 0:01:04.8]}
52... Kf7 {[%clk 0:00:21.3]} 53. Ke3 {[%clk 0:01:05]} 53... Kg6 {[%clk
0:00:21.6]} 54. Kd4 {[%clk 0:01:05.5]} 54... Kh5 {[%clk 0:00:21.8]} 55. Ke3
{[%clk 0:01:05.9]} 55... Kg4 {[%clk 0:00:22.1]} 56. Kd4 {[%clk 0:01:06.4]} 56...
Ng3 {[%clk 0:00:22.3]} 57. Bb8 {[%clk 0:01:05.8]} 57... Kf3 {[%clk 0:00:22.2]}
58. Be5 {[%clk 0:01:05.6]} 58... Kg4 {[%clk 0:00:22.4]} 59. Bb8 {[%clk
0:01:05.7]} 59... Nh5 {[%clk 0:00:22.7]} 60. Be5 {[%clk 0:01:05.8]} 60... Nxf4
{[%clk 0:00:23]} 61. Bxf4 {[%clk 0:01:05.9]} 1/2-1/2

[Event "*** Titled Tuesday Blitz"]
[Site "Chess.com"]
[Date "2021.02.02"]
[Round "2"]
[White "zacachess"]
[Black "EugeneRougon"]
[Result "0-1"]
[WhiteElo "2411"]
[BlackElo "2741"]
[TimeControl "180+1"]
[EndTime "10:19:42 PST"]
[Termination "EugeneRougon won by resignation"]

1. e4 {[%clk 0:03:00.9]} 1... e6 {[%clk 0:02:56.5]} 2. d4 {[%clk 0:03:00.5]}
2... d5 {[%clk 0:02:55.6]} 3. e5 {[%clk 0:03:01.1]} 3... c5 {[%clk 0:02:55.4]}
4. c3 {[%clk 0:03:01.7]} 4... Nc6 {[%clk 0:02:55.9]} 5. Nf3 {[%clk 0:03:02.3]}
5... Bd7 {[%clk 0:02:56.2]} 6. Be2 {[%clk 0:02:58.7]} 6... cxd4 {[%clk
0:02:44.4]} 7. cxd4 {[%clk 0:02:58.3]} 7... Nge7 {[%clk 0:02:45.3]} 8. O-O
{[%clk 0:02:56.6]} 8... Nf5 {[%clk 0:02:45.3]} 9. Nc3 {[%clk 0:02:56.4]} 9...
Qb6 {[%clk 0:02:41.8]} 10. Na4 {[%clk 0:02:56]} 10... Qa5 {[%clk 0:02:38.9]} 11.
Bd2 {[%clk 0:02:45.1]} 11... Qd8 {[%clk 0:02:29.7]} 12. Be3 {[%clk 0:02:40.3]}
12... Be7 {[%clk 0:02:27.2]} 13. Rc1 {[%clk 0:02:39]} 13... O-O {[%clk 0:02:27]}
14. Nc5 {[%clk 0:02:37.7]} 14... Rb8 {[%clk 0:02:05.7]} 15. Bd3 {[%clk
0:02:28.4]} 15... Nxe3 {[%clk 0:02:05.8]} 16. fxe3 {[%clk 0:02:28.9]} 16... f5
{[%clk 0:01:58.6]} 17. exf6 {[%clk 0:02:19.1]} 17... Rxf6 {[%clk 0:01:53.9]} 18.
Bb5 {[%clk 0:01:56.3]} 18... Be8 {[%clk 0:01:43]} 19. b3 {[%clk 0:01:30.3]}
19... Qb6 {[%clk 0:01:11]} 20. Bxc6 {[%clk 0:01:16.9]} 20... Bxc6 {[%clk
0:01:07.6]} 21. Ne5 {[%clk 0:01:16.9]} 21... Rxf1+ {[%clk 0:00:54.5]} 22. Qxf1
{[%clk 0:01:17.8]} 22... Rf8 {[%clk 0:00:55]} 23. Qe2 {[%clk 0:01:12.7]} 23...
Bb5 {[%clk 0:00:44.7]} 24. Qg4 {[%clk 0:01:11.5]} 24... Rf5 {[%clk 0:00:39.3]}
25. a4 {[%clk 0:00:30.5]} 25... Be8 {[%clk 0:00:31.6]} 26. a5 {[%clk 0:00:30.4]}
26... Qxa5 {[%clk 0:00:18.5]} 27. Nxe6 {[%clk 0:00:19.2]} 27... g6 {[%clk
0:00:18.8]} 28. Rd1 {[%clk 0:00:17.3]} 28... Qa2 {[%clk 0:00:17.5]} 29. Nf4
{[%clk 0:00:16.7]} 29... Qxb3 {[%clk 0:00:15.6]} 30. Re1 {[%clk 0:00:13.4]}
30... Bb4 {[%clk 0:00:15.5]} 31. Re2 {[%clk 0:00:12.2]} 31... Bb5 {[%clk
0:00:15.4]} 32. Nfxg6 {[%clk 0:00:06.3]} 32... Qd1+ {[%clk 0:00:13.5]} 0-1

[Event "*** Titled Tuesday Blitz"]
[Site "Chess.com"]
[Date "2021.02.02"]
[Round "2"]
[White "erdni1993"]
[Black "KarateBaby"]
[Result "1-0"]
[WhiteElo "2449"]
[BlackElo "2230"]
[TimeControl "180+1"]
[EndTime "10:19:42 PST"]
[Termination "erdni1993 won by checkmate"]

1. d4 {[%clk 0:03:00.9]} 1... Nf6 {[%clk 0:02:57.2]} 2. c4 {[%clk 0:03:00.2]}
2... g6 {[%clk 0:02:55.9]} 3. Nc3 {[%clk 0:03:00.7]} 3... Bg7 {[%clk 0:02:56.8]}
4. e3 {[%clk 0:03:01.1]} 4... O-O {[%clk 0:02:51.8]} 5. Nf3 {[%clk 0:03:02]}
5... d6 {[%clk 0:02:52.2]} 6. Be2 {[%clk 0:03:00.8]} 6... Nbd7 {[%clk
0:02:52.5]} 7. O-O {[%clk 0:03:01.3]} 7... e5 {[%clk 0:02:53]} 8. dxe5 {[%clk
0:02:59.8]} 8... dxe5 {[%clk 0:02:53.9]} 9. b3 {[%clk 0:02:58.5]} 9... c6 {[%clk
0:02:53.5]} 10. Bb2 {[%clk 0:02:57.9]} 10... Qe7 {[%clk 0:02:51.1]} 11. Qc2
{[%clk 0:02:57.6]} 11... Nc5 {[%clk 0:02:50.1]} 12. Nd2 {[%clk 0:02:57.4]} 12...
Bf5 {[%clk 0:02:47.9]} 13. e4 {[%clk 0:02:56.1]} 13... Bc8 {[%clk 0:02:48.5]}
14. Nf3 {[%clk 0:02:43.5]} 14... Bg4 {[%clk 0:02:48]} 15. h3 {[%clk 0:02:41.8]}
15... Bxf3 {[%clk 0:02:48.2]} 16. Bxf3 {[%clk 0:02:42.6]} 16... Ne6 {[%clk
0:02:48.7]} 17. Ne2 {[%clk 0:02:40.9]} 17... Rad8 {[%clk 0:02:47.1]} 18. g3
{[%clk 0:02:24.2]} 18... Nd7 {[%clk 0:02:39.3]} 19. Rad1 {[%clk 0:02:22.1]}
19... f5 {[%clk 0:02:39.1]} 20. exf5 {[%clk 0:02:06.8]} 20... gxf5 {[%clk
0:02:40]} 21. h4 {[%clk 0:01:48.6]} 21... f4 {[%clk 0:02:33.3]} 22. Be4 {[%clk
0:01:46.7]} 22... Ndc5 {[%clk 0:02:29]} 23. Bxh7+ {[%clk 0:01:44.1]} 23... Kh8
{[%clk 0:02:29.6]} 24. Bf5 {[%clk 0:01:34.2]} 24... f3 {[%clk 0:02:28.1]} 25.
Nc1 {[%clk 0:01:29.6]} 25... Nf4 {[%clk 0:01:50]} 26. Rxd8 {[%clk 0:01:18.5]}
26... Rxd8 {[%clk 0:01:49.6]} 27. Bg4 {[%clk 0:01:09.5]} 27... e4 {[%clk
0:01:33.8]} 28. Re1 {[%clk 0:00:44.5]} 28... Ng2 {[%clk 0:01:29.4]} 29. Bxg7+
{[%clk 0:00:24.4]} 29... Qxg7 {[%clk 0:01:21.7]} 30. Rxe4 {[%clk 0:00:18.5]}
30... Nxe4 {[%clk 0:01:16.1]} 31. Qxe4 {[%clk 0:00:19.4]} 31... Rd1+ {[%clk
0:00:27.9]} 32. Kh2 {[%clk 0:00:19.5]} 32... Rxc1 {[%clk 0:00:28.8]} 33. Qe8+
{[%clk 0:00:14.8]} 33... Kh7 {[%clk 0:00:24.4]} 34. Bf5+ {[%clk 0:00:13.3]}
34... Kh6 {[%clk 0:00:18.3]} 35. Qe6+ {[%clk 0:00:13.7]} 35... Kh5 {[%clk
0:00:16.5]} 36. g4+ {[%clk 0:00:13.5]} 36... Kxh4 {[%clk 0:00:14]} 37. Qd6
{[%clk 0:00:12.7]} 37... Qg5 {[%clk 0:00:09.1]} 38. Qg3# {[%clk 0:00:12.3]} 1-0

[Event "*** Titled Tuesday Blitz"]
[Site "Chess.com"]
[Date "2021.02.02"]
[Round "2"]
[White "Mimsychess"]
[Black "onetowin"]
[Result "0-1"]
[WhiteElo "2364"]
[BlackElo "2015"]
[TimeControl "180+1"]
[EndTime "10:19:42 PST"]
[Termination "onetowin won on time"]

1. d4 {[%clk 0:03:00.9]} 1... b6 {[%clk 0:02:59.4]} 2. e4 {[%clk 0:03:00.3]}
2... Bb7 {[%clk 0:02:59.8]} 3. Bd3 {[%clk 0:02:59.9]} 3... e6 {[%clk 0:02:59.6]}
4. Nf3 {[%clk 0:02:59.4]} 4... Nf6 {[%clk 0:02:56.7]} 5. Nc3 {[%clk 0:02:53.8]}
5... c5 {[%clk 0:02:56.1]} 6. O-O {[%clk 0:02:35.9]} 6... cxd4 {[%clk
0:02:54.9]} 7. Nxd4 {[%clk 0:02:35.5]} 7... Nc6 {[%clk 0:02:54.1]} 8. Nxc6
{[%clk 0:02:35]} 8... Bxc6 {[%clk 0:02:55]} 9. e5 {[%clk 0:02:29.6]} 9... Nd5
{[%clk 0:02:51.8]} 10. Ne4 {[%clk 0:02:29.8]} 10... f5 {[%clk 0:02:36.2]} 11.
exf6 {[%clk 0:02:12.2]} 11... Nxf6 {[%clk 0:02:35.2]} 12. Bg5 {[%clk 0:02:08.6]}
12... Be7 {[%clk 0:02:30.3]} 13. Bxf6 {[%clk 0:02:07.7]} 13... Bxf6 {[%clk
0:02:19.5]} 14. Qh5+ {[%clk 0:01:53.4]} 14... g6 {[%clk 0:02:11.4]} 15. Qh6
{[%clk 0:01:42.5]} 15... Qe7 {[%clk 0:01:58.2]} 16. Nxf6+ {[%clk 0:01:32.3]}
16... Qxf6 {[%clk 0:01:57.4]} 17. c3 {[%clk 0:01:22.4]} 17... O-O-O {[%clk
0:01:45.5]} 18. a4 {[%clk 0:01:22.5]} 18... Qe5 {[%clk 0:01:39.2]} 19. Rfe1
{[%clk 0:00:50.4]} 19... Qd5 {[%clk 0:01:35.5]} 20. Be4 {[%clk 0:00:50.6]} 20...
Qc5 {[%clk 0:01:32.1]} 21. b4 {[%clk 0:00:47.6]} 21... Qc4 {[%clk 0:01:18.8]}
22. Bxc6 {[%clk 0:00:37.5]} 22... Qxc6 {[%clk 0:01:18.4]} 23. a5 {[%clk
0:00:35.3]} 23... Kb7 {[%clk 0:01:15.1]} 24. Qe3 {[%clk 0:00:30]} 24... Rhf8
{[%clk 0:01:06.5]} 25. Ra3 {[%clk 0:00:29]} 25... b5 {[%clk 0:00:50.1]} 26. a6+
{[%clk 0:00:29.1]} 26... Kb8 {[%clk 0:00:48.8]} 27. Ra5 {[%clk 0:00:24.9]} 27...
Rf5 {[%clk 0:00:45.7]} 28. f3 {[%clk 0:00:23.1]} 28... Rdf8 {[%clk 0:00:44.3]}
29. Qd4 {[%clk 0:00:18.7]} 29... Rd5 {[%clk 0:00:43]} 30. Qe3 {[%clk 0:00:14.9]}
30... Rff5 {[%clk 0:00:39.3]} 31. Rc1 {[%clk 0:00:13.6]} 31... Rfe5 {[%clk
0:00:37]} 32. Qf4 {[%clk 0:00:13.3]} 32... Qb6+ {[%clk 0:00:34.2]} 33. Kh1
{[%clk 0:00:12.6]} 33... Ka8 {[%clk 0:00:20.7]} 34. Qf8+ {[%clk 0:00:10.7]}
34... Qb8 {[%clk 0:00:20.8]} 35. Qe7 {[%clk 0:00:09.3]} 35... Rh5 {[%clk
0:00:20.5]} 36. h3 {[%clk 0:00:05.9]} 36... Rd2 {[%clk 0:00:17.9]} 0-1

[Event "*** Titled Tuesday Blitz"]
[Site "Chess.com"]
[Date "2021.02.02"]
[Round "2"]
[White "Sokoloco"]
[Black "HackWithBlack"]
[Result "1-0"]
[WhiteElo "2490"]
[BlackElo "2289"]
[TimeControl "180+1"]
[EndTime "10:19:44 PST"]
[Termination "Sokoloco won by resignation"]

1. b3 {[%clk 0:02:29.6]} 1... d5 {[%clk 0:02:56.9]} 2. Bb2 {[%clk 0:02:30.5]}
2... c5 {[%clk 0:02:57]} 3. e3 {[%clk 0:02:30.9]} 3... Nc6 {[%clk 0:02:57.3]} 4.
f4 {[%clk 0:02:28.8]} 4... Nf6 {[%clk 0:02:56.2]} 5. Nf3 {[%clk 0:02:29.3]} 5...
Bg4 {[%clk 0:02:53.3]} 6. Bb5 {[%clk 0:02:28.7]} 6... e6 {[%clk 0:02:51.4]} 7.
O-O {[%clk 0:02:27.6]} 7... Be7 {[%clk 0:02:49.6]} 8. d3 {[%clk 0:02:27.4]} 8...
O-O {[%clk 0:02:47.6]} 9. Bxc6 {[%clk 0:02:27.1]} 9... bxc6 {[%clk 0:02:47.4]}
10. Nbd2 {[%clk 0:02:27.7]} 10... Nd7 {[%clk 0:02:37.2]} 11. Qe1 {[%clk
0:02:25.4]} 11... Bxf3 {[%clk 0:02:36.2]} 12. Nxf3 {[%clk 0:02:23.3]} 12... Bf6
{[%clk 0:02:35.9]} 13. Ne5 {[%clk 0:02:19.5]} 13... Bxe5 {[%clk 0:02:26.2]} 14.
Bxe5 {[%clk 0:02:07.7]} 14... Nxe5 {[%clk 0:02:16.5]} 15. fxe5 {[%clk
0:02:08.6]} 15... Qg5 {[%clk 0:02:16.9]} 16. d4 {[%clk 0:02:02]} 16... cxd4
{[%clk 0:02:04.7]} 17. exd4 {[%clk 0:02:02.9]} 17... Qg6 {[%clk 0:01:55.7]} 18.
Qd2 {[%clk 0:01:54.7]} 18... Rac8 {[%clk 0:01:54.8]} 19. b4 {[%clk 0:01:54.3]}
19... f6 {[%clk 0:01:43.7]} 20. exf6 {[%clk 0:01:44.4]} 20... Rxf6 {[%clk
0:01:44.6]} 21. Rxf6 {[%clk 0:01:44.5]} 21... Qxf6 {[%clk 0:01:36.2]} 22. Re1
{[%clk 0:01:43]} 22... Re8 {[%clk 0:01:16]} 23. c3 {[%clk 0:01:35.7]} 23... e5
{[%clk 0:01:15.3]} 24. Qf2 {[%clk 0:00:59.6]} 24... Qxf2+ {[%clk 0:01:02.8]} 25.
Kxf2 {[%clk 0:00:59.2]} 25... e4 {[%clk 0:01:03.7]} 26. a4 {[%clk 0:00:56.7]}
26... Kf7 {[%clk 0:01:01.1]} 27. Ke3 {[%clk 0:00:47.7]} 27... Ke6 {[%clk
0:01:00.1]} 28. b5 {[%clk 0:00:37.5]} 28... Rb8 {[%clk 0:00:44.7]} 29. bxc6
{[%clk 0:00:23.4]} 29... Rb6 {[%clk 0:00:42.9]} 30. c4 {[%clk 0:00:17.6]} 30...
Rxc6 {[%clk 0:00:39.5]} 31. c5 {[%clk 0:00:18.1]} 31... Rc7 {[%clk 0:00:28.5]}
32. Rb1 {[%clk 0:00:18.2]} 32... g5 {[%clk 0:00:19.6]} 33. h3 {[%clk 0:00:16.8]}
33... h5 {[%clk 0:00:19.6]} 34. Rb8 {[%clk 0:00:17.2]} 34... Re7 {[%clk
0:00:16.2]} 35. Rh8 {[%clk 0:00:14.1]} 35... h4 {[%clk 0:00:16.3]} 36. Rg8
{[%clk 0:00:12.7]} 36... Kf5 {[%clk 0:00:16.8]} 37. Rd8 {[%clk 0:00:12.5]} 37...
Ke6 {[%clk 0:00:16.5]} 38. Rd6+ {[%clk 0:00:13]} 38... Kf7 {[%clk 0:00:15.3]}
39. Rxd5 {[%clk 0:00:13.9]} 39... Rb7 {[%clk 0:00:15.5]} 40. Rxg5 {[%clk
0:00:13.7]} 1-0